Workbook

Sheet Přehled večírku
B3: Přehled večírku
B6: UDÁLOST | D6: SOUHRN HOSTŮ | H6: ="NEVYŘÍZENÁ POTVRZENÍ ÚČASTI: "&NevyřízenáPotvrzeníÚčasti -> NEVYŘÍZENÁ POTVRZENÍ ÚČASTI: 2
B7: Babiččiny 75. narozeniny | D7: PŘEHLED ODPOVĚDÍ | F7: NÁKLADY NA JEDNOHO HOSTA | H7: ČÁSTKA ROZPOČTU
D8: Hosté, kteří potvrdili účast | E8: Celkem potvrzené | F8: Jídlo | G8: Jiné | H8: Celkem
B9: DATUM | D9: Dospělí | E9: =SUMIF(TabulkaHostů[ZÚČASTNÍ SE?],"=Ano",TabulkaHostů[DOSPĚLÍ]) -> 26 | F9: =TabulkaPotravin[[#Totals],[NÁKLADY NA DOSPĚLÉHO]] -> 12.69 Kč | G9: =ZákladníNákladyNaHosta -> 18.70 Kč | H9: =(SouhrnÚčastníků[[#This Row],[Jídlo]]+SouhrnÚčastníků[[#This Row],[Jiné]])*Celkem_dospělí -> 816.03 Kč
B10: 14. Června 2011 | D10: Děti | E10: =SUMIF(TabulkaHostů[ZÚČASTNÍ SE?],"=Ano",TabulkaHostů[DĚTI]) -> 20 | F10: =TabulkaPotravin[[#Totals],[NÁKLADY NA DÍTĚ]] -> 7.25 Kč | G10: =ZákladníNákladyNaHosta -> 18.70 Kč | H10: =(SouhrnÚčastníků[[#This Row],[Jídlo]]+SouhrnÚčastníků[[#This Row],[Jiné]])*Celkem_děti -> 518.97 Kč
D11: Celkem | E11: =SUBTOTAL(109,SouhrnÚčastníků[Celkem potvrzené]) -> 46 | F11: ="Prům. "&TEXT(SUBTOTAL(101,SouhrnÚčastníků[Jídlo]),"# ##0,00 Kč") -> Prům. 9,97 Kč | G11: ="Prům. "&TEXT(SUBTOTAL(101,SouhrnÚčastníků[Jiné]),"# ##0,00 Kč") -> Prům. 18,70 Kč | H11: =SUBTOTAL(109,SouhrnÚčastníků[Celkem]) -> 1,335.00 Kč
B12: ČAS
B13: 14:00–16:00 hodin
B15: MÍSTO | D15: SOUHRN ROZPOČTU
B16: Dům tety Kim | D16: ÚKOL | E16: POČET | F16: ČÁSTKA ROZPOČTU | G16: CELKOVÉ NÁKLADY | H16: ROZDÍL
D17: Jídlo a pití | E17: =COUNTA(TabulkaPotravin[JÍDLO NEBO NÁPOJ]) -> 18 | F17: 500.00 Kč | G17: =TabulkaPotravin[[#Totals],[CELKOVÉ NÁKLADY]] -> 475.00 Kč | H17: =PřehledRozpočtu[[#This Row],[ČÁSTKA ROZPOČTU]]-PřehledRozpočtu[[#This Row],[CELKOVÉ NÁKLADY]] -> 25.00 Kč
D18: =Záhlavítabulky1 -> Vybavení a zásoby | E18: =COUNTA(Tabulka1Rozpočet[Vybavení a zásoby]) -> 7 | F18: 400.00 Kč | G18: =Tabulka1Rozpočet[[#Totals],[Náklady]] -> 400.00 Kč | H18: =PřehledRozpočtu[[#This Row],[ČÁSTKA ROZPOČTU]]-PřehledRozpočtu[[#This Row],[CELKOVÉ NÁKLADY]] -> 0.00 Kč
D19: =Záhlavítabulky2 -> Dekorace | E19: =COUNTA(Tabulka2Rozpočet[Dekorace]) -> 4 | F19: 150.00 Kč | G19: =Tabulka2Rozpočet[[#Totals],[Náklady]] -> 175.00 Kč | H19: =PřehledRozpočtu[[#This Row],[ČÁSTKA ROZPOČTU]]-PřehledRozpočtu[[#This Row],[CELKOVÉ NÁKLADY]] -> -25.00 Kč
D20: =Záhlavítabulky3 -> Jiné | E20: =COUNTA(Tabulka3Rozpočet[Jiné]) -> 4 | F20: 300.00 Kč | G20: =Tabulka3Rozpočet[[#Totals],[Náklady]] -> 285.00 Kč | H20: =PřehledRozpočtu[[#This Row],[ČÁSTKA ROZPOČTU]]-PřehledRozpočtu[[#This Row],[CELKOVÉ NÁKLADY]] -> 15.00 Kč
D21: Celkem | E21: =SUBTOTAL(109,PřehledRozpočtu[POČET]) -> 33 | F21: =SUBTOTAL(109,PřehledRozpočtu[ČÁSTKA ROZPOČTU]) -> 1,350.00 Kč | G21: =SUBTOTAL(109,PřehledRozpočtu[CELKOVÉ NÁKLADY]) -> 1,335.00 Kč | H21: =SUBTOTAL(109,PřehledRozpočtu[ROZDÍL]) -> 15.00 Kč

Sheet Seznam hostů
B3: Seznam hostů
B7: JMÉNO | C7: ADRESA | D7: MĚSTO | E7: STÁT | F7: PSČ | G7: TELEFON | H7: E-MAIL | I7: ZÚČASTNÍ SE? | J7: DĚTI | K7: DOSPĚLÍ | L7: CELKEM
B8: Rodina 1 | C8: Adresa 1 | D8: Město 1 | E8: Stát 1 | F8: PSČ 1 | G8: Telefon 1 | H8: E-mail1 | I8: Ne | J8: 2 | K8: 2 | L8: =SUM(TabulkaHostů[[#This Row],[DĚTI]:[DOSPĚLÍ]]) -> 4
B9: Rodina 2 | C9: Adresa 2 | D9: Město 2 | E9: Stát 2 | F9: PSČ 2 | G9: Telefon 2 | H9: E-mail2 | I9: Ano | J9: 1 | K9: 1 | L9: =SUM(TabulkaHostů[[#This Row],[DĚTI]:[DOSPĚLÍ]]) -> 2
B10: Rodina 3 | C10: Adresa 3 | D10: Město 3 | E10: Stát 3 | F10: PSČ 3 | G10: Telefon 3 | H10: E-mail3 | I10: Ano | J10: 3 | K10: 3 | L10: =SUM(TabulkaHostů[[#This Row],[DĚTI]:[DOSPĚLÍ]]) -> 6
B11: Rodina 4 | C11: Adresa 4 | D11: Město 4 | E11: Stát 4 | F11: PSČ 4 | G11: Telefon 4 | H11: E-mail4 | K11: 2 | L11: =SUM(TabulkaHostů[[#This Row],[DĚTI]:[DOSPĚLÍ]]) -> 2
B12: Rodina 5 | C12: Adresa 5 | D12: Město 5 | E12: Stát 5 | F12: PSČ 5 | G12: Telefon 5 | H12: E-mail5 | I12: Ano | J12: 4 | K12: 3 | L12: =SUM(TabulkaHostů[[#This Row],[DĚTI]:[DOSPĚLÍ]]) -> 7
B13: Rodina 6 | C13: Adresa 6 | D13: Město 6 | E13: Stát 6 | F13: PSČ 6 | G13: Telefon 6 | H13: E-mail6 | I13: Ano | J13: 2 | K13: 2 | L13: =SUM(TabulkaHostů[[#This Row],[DĚTI]:[DOSPĚLÍ]]) -> 4
B14: Rodina 7 | C14: Adresa 7 | D14: Město 7 | E14: Stát 7 | F14: PSČ 7 | G14: Telefon 7 | H14: E-mail7 | I14: Ano | J14: 1 | K14: 4 | L14: =SUM(TabulkaHostů[[#This Row],[DĚTI]:[DOSPĚLÍ]]) -> 5
B15: Rodina 8 | C15: Adresa 8 | D15: Město 8 | E15: Stát 8 | F15: PSČ 8 | G15: Telefon 8 | H15: E-mail8 | I15: Ne | J15: 5 | K15: 3 | L15: =SUM(TabulkaHostů[[#This Row],[DĚTI]:[DOSPĚLÍ]]) -> 8
B16: Rodina 9 | C16: Adresa 9 | D16: Město 9 | E16: Stát 9 | F16: PSČ 9 | G16: Telefon 9 | H16: E-mail9 | I16: Ano | J16: 3 | K16: 2 | L16: =SUM(TabulkaHostů[[#This Row],[DĚTI]:[DOSPĚLÍ]]) -> 5
B17: Rodina 10 | C17: Adresa 10 | D17: Město 10 | E17: Stát 10 | F17: PSČ 10 | G17: Telefon 10 | H17: E-mail10 | I17: Ano | K17: 4 | L17: =SUM(TabulkaHostů[[#This Row],[DĚTI]:[DOSPĚLÍ]]) -> 4
B18: Rodina 11 | C18: Adresa 11 | D18: Město 11 | E18: Stát 11 | F18: PSČ 11 | G18: Telefon 11 | H18: E-mail11 | I18: Ano | J18: 3 | K18: 5 | L18: =SUM(TabulkaHostů[[#This Row],[DĚTI]:[DOSPĚLÍ]]) -> 8
B19: Rodina 12 | C19: Adresa 12 | D19: Město 12 | E19: Stát 12 | F19: PSČ 12 | G19: Telefon 12 | H19: E-mail12 | I19: Ne | J19: 2 | K19: 3 | L19: =SUM(TabulkaHostů[[#This Row],[DĚTI]:[DOSPĚLÍ]]) -> 5
B20: Rodina 13 | C20: Adresa 13 | D20: Město 13 | E20: Stát 13 | F20: PSČ 13 | G20: Telefon 13 | H20: E-mail13 | I20: Ano | J20: 3 | K20: 2 | L20: =SUM(TabulkaHostů[[#This Row],[DĚTI]:[DOSPĚLÍ]]) -> 5
B21: Rodina 14 | C21: Adresa 14 | D21: Město 14 | E21: Stát 14 | F21: PSČ 14 | G21: Telefon 14 | H21: E-mail14 | I21: Ne | K21: 1 | L21: =SUM(TabulkaHostů[[#This Row],[DĚTI]:[DOSPĚLÍ]]) -> 1
B22: Rodina 15 | C22: Adresa 15 | D22: Město 15 | E22: Stát 15 | F22: PSČ 15 | G22: Telefon 15 | H22: E-mail15 | K22: 2 | L22: =SUM(TabulkaHostů[[#This Row],[DĚTI]:[DOSPĚLÍ]]) -> 2

Sheet Jídlo a nápoje
B3: Jídlo a nápoje
B5: Zadejte náklady a odhadované porce k automatickému výpočtu celkového počtu porcí a nákladů na jednu porci na základě celkové účasti
B6: JÍDLO NEBO NÁPOJ | C6: CELKOVÉ NÁKLADY | D6: PORCE NA DÍTĚ | E6: PORCE NA DOSPĚLÉHO | F6: CELKEM PORCÍ | G6: NÁKLADY NA PORCI | H6: NÁKLADY NA DÍTĚ | I6: NÁKLADY NA DOSPĚLÉHO | J6: POZNÁMKY
B7: Soda | C7: 15.00 Kč | D7: 0.5 | E7: 2 | F7: =(TabulkaPotravin[[#This Row],[PORCE NA DÍTĚ]]*Celkem_děti)+(TabulkaPotravin[[#This Row],[PORCE NA DOSPĚLÉHO]]*Celkem_dospělí) -> 62 | G7: =IFERROR(TabulkaPotravin[[#This Row],[CELKOVÉ NÁKLADY]]/TabulkaPotravin[[#This Row],[CELKEM PORCÍ]],"") -> 0.24 Kč | H7: =IFERROR(TabulkaPotravin[[#This Row],[NÁKLADY NA PORCI]]*TabulkaPotravin[[#This Row],[PORCE NA DÍTĚ]],"") -> 0.12 Kč | I7: =IFERROR(TabulkaPotravin[[#This Row],[NÁKLADY NA PORCI]]*TabulkaPotravin[[#This Row],[PORCE NA DOSPĚLÉHO]],"") -> 0.48 Kč | J7: 2litrové láhve
B8: Krabice s džusem | C8: 15.00 Kč | D8: 2 | E8: 0 | F8: =(TabulkaPotravin[[#This Row],[PORCE NA DÍTĚ]]*Celkem_děti)+(TabulkaPotravin[[#This Row],[PORCE NA DOSPĚLÉHO]]*Celkem_dospělí) -> 40 | G8: =IFERROR(TabulkaPotravin[[#This Row],[CELKOVÉ NÁKLADY]]/TabulkaPotravin[[#This Row],[CELKEM PORCÍ]],"") -> 0.38 Kč | H8: =IFERROR(TabulkaPotravin[[#This Row],[NÁKLADY NA PORCI]]*TabulkaPotravin[[#This Row],[PORCE NA DÍTĚ]],"") -> 0.75 Kč | I8: =IFERROR(TabulkaPotravin[[#This Row],[NÁKLADY NA PORCI]]*TabulkaPotravin[[#This Row],[PORCE NA DOSPĚLÉHO]],"") -> 0.00 Kč | J8: Jablka a bílé hrozny
B9: Víno | C9: 50.00 Kč | D9: 0 | E9: 2 | F9: =(TabulkaPotravin[[#This Row],[PORCE NA DÍTĚ]]*Celkem_děti)+(TabulkaPotravin[[#This Row],[PORCE NA DOSPĚLÉHO]]*Celkem_dospělí) -> 52 | G9: =IFERROR(TabulkaPotravin[[#This Row],[CELKOVÉ NÁKLADY]]/TabulkaPotravin[[#This Row],[CELKEM PORCÍ]],"") -> 0.96 Kč | H9: =IFERROR(TabulkaPotravin[[#This Row],[NÁKLADY NA PORCI]]*TabulkaPotravin[[#This Row],[PORCE NA DÍTĚ]],"") -> 0.00 Kč | I9: =IFERROR(TabulkaPotravin[[#This Row],[NÁKLADY NA PORCI]]*TabulkaPotravin[[#This Row],[PORCE NA DOSPĚLÉHO]],"") -> 1.92 Kč
B10: Koláč | C10: 75.00 Kč | D10: 1 | E10: 1 | F10: =(TabulkaPotravin[[#This Row],[PORCE NA DÍTĚ]]*Celkem_děti)+(TabulkaPotravin[[#This Row],[PORCE NA DOSPĚLÉHO]]*Celkem_dospělí) -> 46 | G10: =IFERROR(TabulkaPotravin[[#This Row],[CELKOVÉ NÁKLADY]]/TabulkaPotravin[[#This Row],[CELKEM PORCÍ]],"") -> 1.63 Kč | H10: =IFERROR(TabulkaPotravin[[#This Row],[NÁKLADY NA PORCI]]*TabulkaPotravin[[#This Row],[PORCE NA DÍTĚ]],"") -> 1.63 Kč | I10: =IFERROR(TabulkaPotravin[[#This Row],[NÁKLADY NA PORCI]]*TabulkaPotravin[[#This Row],[PORCE NA DOSPĚLÉHO]],"") -> 1.63 Kč | J10: Objednávání u místního pekaře
B11: Zmrzlina | C11: 20.00 Kč | D11: 1 | E11: 1.5 | F11: =(TabulkaPotravin[[#This Row],[PORCE NA DÍTĚ]]*Celkem_děti)+(TabulkaPotravin[[#This Row],[PORCE NA DOSPĚLÉHO]]*Celkem_dospělí) -> 59 | G11: =IFERROR(TabulkaPotravin[[#This Row],[CELKOVÉ NÁKLADY]]/TabulkaPotravin[[#This Row],[CELKEM PORCÍ]],"") -> 0.34 Kč | H11: =IFERROR(TabulkaPotravin[[#This Row],[NÁKLADY NA PORCI]]*TabulkaPotravin[[#This Row],[PORCE NA DÍTĚ]],"") -> 0.34 Kč | I11: =IFERROR(TabulkaPotravin[[#This Row],[NÁKLADY NA PORCI]]*TabulkaPotravin[[#This Row],[PORCE NA DOSPĚLÉHO]],"") -> 0.51 Kč
B12: Misky na pudink | C12: 15.00 Kč | D12: 1 | E12: 0 | F12: =(TabulkaPotravin[[#This Row],[PORCE NA DÍTĚ]]*Celkem_děti)+(TabulkaPotravin[[#This Row],[PORCE NA DOSPĚLÉHO]]*Celkem_dospělí) -> 20 | G12: =IFERROR(TabulkaPotravin[[#This Row],[CELKOVÉ NÁKLADY]]/TabulkaPotravin[[#This Row],[CELKEM PORCÍ]],"") -> 0.75 Kč | H12: =IFERROR(TabulkaPotravin[[#This Row],[NÁKLADY NA PORCI]]*TabulkaPotravin[[#This Row],[PORCE NA DÍTĚ]],"") -> 0.75 Kč | I12: =IFERROR(TabulkaPotravin[[#This Row],[NÁKLADY NA PORCI]]*TabulkaPotravin[[#This Row],[PORCE NA DOSPĚLÉHO]],"") -> 0.00 Kč | J12: Koupit balené kelímky: vanilka a čokoláda
B13: Nadívané žampiony | C13: 32.00 Kč | D13: 1 | E13: 2 | F13: =(TabulkaPotravin[[#This Row],[PORCE NA DÍTĚ]]*Celkem_děti)+(TabulkaPotravin[[#This Row],[PORCE NA DOSPĚLÉHO]]*Celkem_dospělí) -> 72 | G13: =IFERROR(TabulkaPotravin[[#This Row],[CELKOVÉ NÁKLADY]]/TabulkaPotravin[[#This Row],[CELKEM PORCÍ]],"") -> 0.44 Kč | H13: =IFERROR(TabulkaPotravin[[#This Row],[NÁKLADY NA PORCI]]*TabulkaPotravin[[#This Row],[PORCE NA DÍTĚ]],"") -> 0.44 Kč | I13: =IFERROR(TabulkaPotravin[[#This Row],[NÁKLADY NA PORCI]]*TabulkaPotravin[[#This Row],[PORCE NA DOSPĚLÉHO]],"") -> 0.89 Kč | J13: Žampionové hlavičky plněné krémovým sýrem a salámem
B14: Bruschetta | C14: 22.00 Kč | D14: 0 | E14: 3 | F14: =(TabulkaPotravin[[#This Row],[PORCE NA DÍTĚ]]*Celkem_děti)+(TabulkaPotravin[[#This Row],[PORCE NA DOSPĚLÉHO]]*Celkem_dospělí) -> 78 | G14: =IFERROR(TabulkaPotravin[[#This Row],[CELKOVÉ NÁKLADY]]/TabulkaPotravin[[#This Row],[CELKEM PORCÍ]],"") -> 0.28 Kč | H14: =IFERROR(TabulkaPotravin[[#This Row],[NÁKLADY NA PORCI]]*TabulkaPotravin[[#This Row],[PORCE NA DÍTĚ]],"") -> 0.00 Kč | I14: =IFERROR(TabulkaPotravin[[#This Row],[NÁKLADY NA PORCI]]*TabulkaPotravin[[#This Row],[PORCE NA DOSPĚLÉHO]],"") -> 0.85 Kč | J14: Rajčata s bazalkou
B15: Uzený losos | C15: 50.00 Kč | D15: 1 | E15: 2 | F15: =(TabulkaPotravin[[#This Row],[PORCE NA DÍTĚ]]*Celkem_děti)+(TabulkaPotravin[[#This Row],[PORCE NA DOSPĚLÉHO]]*Celkem_dospělí) -> 72 | G15: =IFERROR(TabulkaPotravin[[#This Row],[CELKOVÉ NÁKLADY]]/TabulkaPotravin[[#This Row],[CELKEM PORCÍ]],"") -> 0.69 Kč | H15: =IFERROR(TabulkaPotravin[[#This Row],[NÁKLADY NA PORCI]]*TabulkaPotravin[[#This Row],[PORCE NA DÍTĚ]],"") -> 0.69 Kč | I15: =IFERROR(TabulkaPotravin[[#This Row],[NÁKLADY NA PORCI]]*TabulkaPotravin[[#This Row],[PORCE NA DOSPĚLÉHO]],"") -> 1.39 Kč
B16: Minibagetky | C16: 20.00 Kč | D16: 1 | E16: 2 | F16: =(TabulkaPotravin[[#This Row],[PORCE NA DÍTĚ]]*Celkem_děti)+(TabulkaPotravin[[#This Row],[PORCE NA DOSPĚLÉHO]]*Celkem_dospělí) -> 72 | G16: =IFERROR(TabulkaPotravin[[#This Row],[CELKOVÉ NÁKLADY]]/TabulkaPotravin[[#This Row],[CELKEM PORCÍ]],"") -> 0.28 Kč | H16: =IFERROR(TabulkaPotravin[[#This Row],[NÁKLADY NA PORCI]]*TabulkaPotravin[[#This Row],[PORCE NA DÍTĚ]],"") -> 0.28 Kč | I16: =IFERROR(TabulkaPotravin[[#This Row],[NÁKLADY NA PORCI]]*TabulkaPotravin[[#This Row],[PORCE NA DOSPĚLÉHO]],"") -> 0.56 Kč | J16: 4 pytlíky–tříděné
B17: Tavený sýr | C17: 10.00 Kč | D17: 1 | E17: 2 | F17: =(TabulkaPotravin[[#This Row],[PORCE NA DÍTĚ]]*Celkem_děti)+(TabulkaPotravin[[#This Row],[PORCE NA DOSPĚLÉHO]]*Celkem_dospělí) -> 72 | G17: =IFERROR(TabulkaPotravin[[#This Row],[CELKOVÉ NÁKLADY]]/TabulkaPotravin[[#This Row],[CELKEM PORCÍ]],"") -> 0.14 Kč | H17: =IFERROR(TabulkaPotravin[[#This Row],[NÁKLADY NA PORCI]]*TabulkaPotravin[[#This Row],[PORCE NA DÍTĚ]],"") -> 0.14 Kč | I17: =IFERROR(TabulkaPotravin[[#This Row],[NÁKLADY NA PORCI]]*TabulkaPotravin[[#This Row],[PORCE NA DOSPĚLÉHO]],"") -> 0.28 Kč | J17: 2 velké kelímky
B18: Kapary | C18: 12.00 Kč | D18: 1 | E18: 2 | F18: =(TabulkaPotravin[[#This Row],[PORCE NA DÍTĚ]]*Celkem_děti)+(TabulkaPotravin[[#This Row],[PORCE NA DOSPĚLÉHO]]*Celkem_dospělí) -> 72 | G18: =IFERROR(TabulkaPotravin[[#This Row],[CELKOVÉ NÁKLADY]]/TabulkaPotravin[[#This Row],[CELKEM PORCÍ]],"") -> 0.17 Kč | H18: =IFERROR(TabulkaPotravin[[#This Row],[NÁKLADY NA PORCI]]*TabulkaPotravin[[#This Row],[PORCE NA DÍTĚ]],"") -> 0.17 Kč | I18: =IFERROR(TabulkaPotravin[[#This Row],[NÁKLADY NA PORCI]]*TabulkaPotravin[[#This Row],[PORCE NA DOSPĚLÉHO]],"") -> 0.33 Kč | J18: 3 sklenice
B19: Kuřecí křidýlka | C19: 45.00 Kč | D19: 2 | E19: 4 | F19: =(TabulkaPotravin[[#This Row],[PORCE NA DÍTĚ]]*Celkem_děti)+(TabulkaPotravin[[#This Row],[PORCE NA DOSPĚLÉHO]]*Celkem_dospělí) -> 144 | G19: =IFERROR(TabulkaPotravin[[#This Row],[CELKOVÉ NÁKLADY]]/TabulkaPotravin[[#This Row],[CELKEM PORCÍ]],"") -> 0.31 Kč | H19: =IFERROR(TabulkaPotravin[[#This Row],[NÁKLADY NA PORCI]]*TabulkaPotravin[[#This Row],[PORCE NA DÍTĚ]],"") -> 0.63 Kč | I19: =IFERROR(TabulkaPotravin[[#This Row],[NÁKLADY NA PORCI]]*TabulkaPotravin[[#This Row],[PORCE NA DOSPĚLÉHO]],"") -> 1.25 Kč | J19: Nákup v místním obchodě s drůbežím masem
B20: Hummus | C20: 10.00 Kč | D20: 4 | E20: 6 | F20: =(TabulkaPotravin[[#This Row],[PORCE NA DÍTĚ]]*Celkem_děti)+(TabulkaPotravin[[#This Row],[PORCE NA DOSPĚLÉHO]]*Celkem_dospělí) -> 236 | G20: =IFERROR(TabulkaPotravin[[#This Row],[CELKOVÉ NÁKLADY]]/TabulkaPotravin[[#This Row],[CELKEM PORCÍ]],"") -> 0.04 Kč | H20: =IFERROR(TabulkaPotravin[[#This Row],[NÁKLADY NA PORCI]]*TabulkaPotravin[[#This Row],[PORCE NA DÍTĚ]],"") -> 0.17 Kč | I20: =IFERROR(TabulkaPotravin[[#This Row],[NÁKLADY NA PORCI]]*TabulkaPotravin[[#This Row],[PORCE NA DOSPĚLÉHO]],"") -> 0.25 Kč | J20: Připravené předchozí noc
B21: Parmazánové pita křupky | C21: 14.00 Kč | D21: 4 | E21: 6 | F21: =(TabulkaPotravin[[#This Row],[PORCE NA DÍTĚ]]*Celkem_děti)+(TabulkaPotravin[[#This Row],[PORCE NA DOSPĚLÉHO]]*Celkem_dospělí) -> 236 | G21: =IFERROR(TabulkaPotravin[[#This Row],[CELKOVÉ NÁKLADY]]/TabulkaPotravin[[#This Row],[CELKEM PORCÍ]],"") -> 0.06 Kč | H21: =IFERROR(TabulkaPotravin[[#This Row],[NÁKLADY NA PORCI]]*TabulkaPotravin[[#This Row],[PORCE NA DÍTĚ]],"") -> 0.24 Kč | I21: =IFERROR(TabulkaPotravin[[#This Row],[NÁKLADY NA PORCI]]*TabulkaPotravin[[#This Row],[PORCE NA DOSPĚLÉHO]],"") -> 0.36 Kč | J21: Připravené předchozí noc
B22: Různá zelenina | C22: 30.00 Kč | D22: 4 | E22: 10 | F22: =(TabulkaPotravin[[#This Row],[PORCE NA DÍTĚ]]*Celkem_děti)+(TabulkaPotravin[[#This Row],[PORCE NA DOSPĚLÉHO]]*Celkem_dospělí) -> 340 | G22: =IFERROR(TabulkaPotravin[[#This Row],[CELKOVÉ NÁKLADY]]/TabulkaPotravin[[#This Row],[CELKEM PORCÍ]],"") -> 0.09 Kč | H22: =IFERROR(TabulkaPotravin[[#This Row],[NÁKLADY NA PORCI]]*TabulkaPotravin[[#This Row],[PORCE NA DÍTĚ]],"") -> 0.35 Kč | I22: =IFERROR(TabulkaPotravin[[#This Row],[NÁKLADY NA PORCI]]*TabulkaPotravin[[#This Row],[PORCE NA DOSPĚLÉHO]],"") -> 0.88 Kč | J22: Kousky mrkve, celer, brokolice, květák, červená a zelená paprika
B23: Sýrové koule | C23: 15.00 Kč | D23: 5 | E23: 10 | F23: =(TabulkaPotravin[[#This Row],[PORCE NA DÍTĚ]]*Celkem_děti)+(TabulkaPotravin[[#This Row],[PORCE NA DOSPĚLÉHO]]*Celkem_dospělí) -> 360 | G23: =IFERROR(TabulkaPotravin[[#This Row],[CELKOVÉ NÁKLADY]]/TabulkaPotravin[[#This Row],[CELKEM PORCÍ]],"") -> 0.04 Kč | H23: =IFERROR(TabulkaPotravin[[#This Row],[NÁKLADY NA PORCI]]*TabulkaPotravin[[#This Row],[PORCE NA DÍTĚ]],"") -> 0.21 Kč | I23: =IFERROR(TabulkaPotravin[[#This Row],[NÁKLADY NA PORCI]]*TabulkaPotravin[[#This Row],[PORCE NA DOSPĚLÉHO]],"") -> 0.42 Kč | J23: Různé: tavený sýr, ostrý sýr bez oříšků
B24: Krekry | C24: 25.00 Kč | D24: 5 | E24: 10 | F24: =(TabulkaPotravin[[#This Row],[PORCE NA DÍTĚ]]*Celkem_děti)+(TabulkaPotravin[[#This Row],[PORCE NA DOSPĚLÉHO]]*Celkem_dospělí) -> 360 | G24: =IFERROR(TabulkaPotravin[[#This Row],[CELKOVÉ NÁKLADY]]/TabulkaPotravin[[#This Row],[CELKEM PORCÍ]],"") -> 0.07 Kč | H24: =IFERROR(TabulkaPotravin[[#This Row],[NÁKLADY NA PORCI]]*TabulkaPotravin[[#This Row],[PORCE NA DÍTĚ]],"") -> 0.35 Kč | I24: =IFERROR(TabulkaPotravin[[#This Row],[NÁKLADY NA PORCI]]*TabulkaPotravin[[#This Row],[PORCE NA DOSPĚLÉHO]],"") -> 0.69 Kč | J24: Různé
B25: Celkem | C25: =SUBTOTAL(109,TabulkaPotravin[CELKOVÉ NÁKLADY]) -> 475.00 Kč | D25: =SUBTOTAL(109,TabulkaPotravin[PORCE NA DÍTĚ]) -> 34.5 | E25: =SUBTOTAL(109,TabulkaPotravin[PORCE NA DOSPĚLÉHO]) -> 65.5 | F25: =SUBTOTAL(109,TabulkaPotravin[CELKEM PORCÍ]) -> 2393 | G25: =SUBTOTAL(109,TabulkaPotravin[NÁKLADY NA PORCI]) -> 6.92 Kč | H25: =SUBTOTAL(109,TabulkaPotravin[NÁKLADY NA DÍTĚ]) -> 7.25 Kč | I25: =SUBTOTAL(109,TabulkaPotravin[NÁKLADY NA DOSPĚLÉHO]) -> 12.69 Kč

Sheet Další nezbytnosti
B3: Další nezbytnosti
B6: Vybavení a zásoby | C6: Náklady | D6: Koupené | E6: Poznámky
B7: Pronájem místnosti/haly | C7: 250.00 Kč | D7: Ano
B8: Prostírání | C8: 30.00 Kč | D8: Ano | E8: Nájemné
B9: Židle a stoly | C9: 0.00 Kč | E9: Započítáno do pronájmu sálu
B10: Ubrousky k nápojům | C10: 25.00 Kč
B11: Ubrousky k jídlu | C11: 20.00 Kč | E11: Nájemné
B12: Stolní servis | C12: 50.00 Kč | E12: Nájemné
B13: Sklo | C13: 25.00 Kč | E13: Nájemné
B14: Celkem | C14: =SUBTOTAL(109,Tabulka1Rozpočet[Náklady]) -> 400.00 Kč
B17: Dekorace | C17: Náklady | D17: Koupené | E17: Poznámky
B18: Balónky | C18: 25.00 Kč
B19: Nádrž s héliem | C19: 50.00 Kč | E19: Nájemné
B20: Ozdoby uprostřed stolu | C20: 100.00 Kč | D20: Ano | E20: Celkem 10
B21: Skleněné vázy | C21: 0.00 Kč | E21: Vypůjčení od Sandy
B22: Celkem | C22: =SUBTOTAL(109,Tabulka2Rozpočet[Náklady]) -> 175.00 Kč
B25: Jiné | C25: Náklady | D25: Koupené | E25: Poznámky
B26: Pozvánky | C26: 50.00 Kč | D26: Ano
B27: Poštovné | C27: 60.00 Kč | D27: Ano
B28: Fotograf | C28: 125.00 Kč | E28: 2 hodiny (14–16)
B29: Dárky pro hosty | C29: 50.00 Kč
B30: Celkem | C30: =SUBTOTAL(109,Tabulka3Rozpočet[Náklady]) -> 285.00 Kč

Sheet Mřížka pro naplánování míst
A1: Posazení hostů
AH35: *1 čtverec = cca 1 čtverečný metr
A36: Poznámky | T36: =" Celkem potvrdilo hostů: "&Potvrzení_hosté -> Celkem potvrdilo hostů: 46
T37: Můžete použít některé z následujících rozmístění stolů:
U38: =ROUNDUP(Potvrzení_hosté/6,0)&"kulaté 1,4metrové stoly (6 míst)" -> 8kulaté 1,4metrové stoly (6 míst)
U39: =ROUNDUP(Potvrzení_hosté/8,0) &" kulaté 1,5metrové stoly (8 míst)" -> 6 kulaté 1,5metrové stoly (8 míst)
U40: =ROUNDUP(Potvrzení_hosté/10,0)&" kulaté 1,8metrové stoly (10 míst)" -> 5 kulaté 1,8metrové stoly (10 míst)
U41: =ROUNDUP(Potvrzení_hosté/6,0)& "obdélníkové stoly o rozměrech 76 × 180 cm (6 míst)" -> 8obdélníkové stoly o rozměrech 76 × 180 cm (6 míst)
U42: =ROUNDUP(Potvrzení_hosté/8,0)&" obdélníkové stoly o rozměrech 76 × 240 cm (8 míst)" -> 6 obdélníkové stoly o rozměrech 76 × 240 cm (8 míst)
T43: (Upřednostňovaný prostor mezi stoly: 1 metr)
